Workbook

Sheet Wesgro Excel Tender BOQ
A1: ITEM NO | C1: BOQ - WESGRO OFFICE FIT OUT 7TH & 8TH FLOORS MEDIA24 | F1: QUANTITY | G1: RATE | H1: AMOUNT | I1: BILL TOTALS
C3: BILL NO. 1 PRELIMINARIES
C5: BUILDING AGREEMENT AND PRELIMINARIES
C7: Where there is conflict between the JBCC Contract and the Wesgro General Conditions of Contract, the JBCC Contract will take preference.
C9: The JBCC Principal Building Agreement (Edition 6.2 - May 2018) prepared by the Joint Building Contracts Committee shall be the applicable building agreement, amended as hereinafter described
C11: The JBCC Principal Building Agreement contract data form an integral part of this agreement
C13: The JBCC General Preliminaries (May 2018) published by the Joint Building Contracts Committee for use with the JBCC Principal Building Agreement (Edition 6.2 - May 2018) shall be deemed to be incorporated in these bills of quantities, amended as hereinafter described
C15: The contractor is deemed to have referred to the above mentioned documents for the full intent and meaning of each clause
C17: The clauses in the above mentioned documents are hereinafter referred to by clause number and heading only
C19: PREAMBLES FOR TRADES
C21: The General Preambles for Trades 2017 published by the Association of South African Quantity Surveyors shall be deemed to be incorporated in these bills of quantities and no claims arising from brevity of description of items fully described in the said General Preambles will be entertained
C23: Supplementary preambles and/or specifications are incorporated in these bills of quantities to satisfy the requirements of this project. Such supplementary preambles and/or specifications shall take precedence over the provisions of the General Preambles
C25: The contractor's prices for all items throughout these bills of quantities shall take account of and include where applicable for all of the obligations, requirements and specifications given in the General Preambles and in any supplementary preambles and/or specifications
C27: SPECIFIC REQUIREMENTS
A29: 1 | C29: The standard clauses of the agreement have not been listed in the Preliminaries Bill and only those clauses which have been expanded on have been listed. The contractor is to provide a lump sum amount for the Preliminaries against the final item of this bill.
C31: PRICING OF PRELIMINARIES
C33: Should the contractor select Option A in the contract data for the adjustment of preliminaries, the amounts entered against the relevant items in these preliminaries are to be divided into one or more of the three categories provided namely fixed (F), value related (V) and time related (T)
C35: SECTION A: PRINCIPAL BUILDING AGREEMENT
A37: 2 | C37: Clause 2.0 - Law, regulations and notices
C39: Statutory and other notices
C41: The contractor shall submit and/or comply with all statutory and other notices that may be required by any local or other authority in order not to cause any delay to the commencement of the works by the contractor. The contractor shall pay all deposits or fees in this regard
C43: It is, however, specifically recorded that the employer shall be responsible for the timeous approval of building plans by any local or other authorities and the payment of any fees or charges related thereto
C45: Health and safety
A47: 3 | C47: Without limiting the generality of the provisions of clause 2.0, the contractor's attention is drawn to the provisions of Construction Regulations 2014 (as amended June 2017) issued in terms of the Occupational Health and Safety Act, 1993. It is specifically stated that the employer shall prepare a documented health and safety specification for the works and that the employer shall ensure that the contractor has made provision for the cost of health and safety measures during the execution of the works. The contractor shall price opposite this item for compliance with the act and the regulations and the reasonable provisions of the aforementioned health and safety specification [2.1]
A49: 4 | C49: Clause 11.0 - Securities
A51: 5 | C51: Clause 11.2.1 A variable or fixed guarantee is not required by the employer A payment reduction shall apply as per Clause 11.4.1 in lieu of a fixed or variable guarantee
C53: Execution (A12 - A17)
A55: 6 | C55: Clause 12.0 - Obligations of the parties
A57: 7 | C57: 12.2.6 Programme The tenderer is to submit a detailed construction programme with the tender as requested in the Wesgro Request for Proposal
A59: 8 | C59: 12.2.13 Designate a competent person Details of the contracts manager and foreman are to be submitted with the tender as requested in the Wesgro Request for Proposal. If for any reason the contracts manager or foreman are not available at site hand over the contractor must submit the CV of the alternative contract staff for approval by the Principal Agent
C61: Completion (A18 - A24)
A63: 9 | C63: Clause 19.0 - Practical completion On the morning of the date of Practical Completion, the building will be handed over to the Principal Agent ready for use by the Employer. The Works shall look at first glance entirely complete and there shall be no work being undertaken at the time, The Works shall be clean and tidy with all services operational. The Principal Agent will inspect the Works for Practical Completion and will issue a Final Completion List that shall not comprise more than 50 items.
A65: 10 | C65: Clause 23.0 - Revision of the date for practical completion Substitution of materials and goods The removal or substitution of any materials and goods which do not conform to the specification or the contract drawings shall not constitute grounds for the extension of the construction period nor for the adjustment of the contract value [17.1.8; 23.1 & 2]
A67: 11 | C67: Clause 25.0 - Payment
C69: Prices submitted Where prices are submitted by the contractor or subcontractor during the progress of the works in respect of contract instructions or in regard to a claim under the terms of this agreement and notwithstanding the fact that such prices may be used in an interim payment certificate, there is to be no presumption of acceptance. Should the principal agent wish to accept any such prices prior to the issue of the certificate of final completion, it shall be in writing
A71: 12 | C71: Clause 26.0 - Adjustment of the contract value and final account
C73: Fluctuations in costs All fluctuations in costs, with the exception of fluctuations in the rate of Value Added Tax, shall be for the account of the contractor [26.9.5]
C75: Cost of claims All costs incurred by the contractor in the preparation of claims shall be borne by the contractor. This provision shall not preclude an adjudicator or an arbitrator appointed in terms of this agreement [30.6 & 7] from making a determination on costs
C77: Claims from subcontractors The contractor shall review, assess and adjudicate any claims received by him from any subcontractor and thereafter submit same to the principal agent with a recommendation in order to assist the principal agent in adjudicating the claim [26.6]
C79: SECTION B: GENERAL PRELIMINARIES
C81: Attendance on subcontractors (B10)
A83: 13 | C83: Clause 10.1 - General attendance General attendance is defined as being the duties of the contractor in terms of clause 12.2 of the JBCC n/s subcontract agreement
C85: SECTION C: SPECIFIC PRELIMINARIES
A87: 14 | C87: Warranties for materials and workmanship Where warranties for materials and/or workmanship are called for, the contractor shall obtain a written warranty, addressed to the employer, from the entity supplying the materials and/or executing the work and shall deliver same to the principal agent on final completion of the contract The warranty shall state that workmanship, materials and installation are warranted for a specific period from the date of practical completion and that any defects that may arise during the specified period shall be made good at the expense of the entity supplying the materials and/or doing the work, upon written notice to do so The warranty will not be enforced if the work is damaged by defects in the execution of the works, in which case the responsibility for replacement shall rest entirely with the contractor
A89: 15 | C89: Overtime Should overtime be required to be worked for any reason whatsoever, the cost of such overtime is to be borne by the contractor unless the principal agent has specifically authorised, prior to execution thereof, that costs for such overtime are to be borne by the employer
A91: 16 | C91: Cooperation of the contractor for cost management It is specifically agreed that the contractor accepts the obligation of assisting the principal agent in implementing proper cost management. The contractor will be advised by the principal agent of all cost management procedures which will be implemented to ensure that the contract value does not exceed the budget
A93: 17 | C93: Overloading The contractor shall take all necessary steps to ensure that no damage occurs due to overloading of any portion of the works or temporary works eg scaffolding, etc. The contractor shall submit details of his proposed loading, storage, plant erection, etc to the principal agent for approval prior to proceeding with such loading, storing or erecting and shall comply with and pay for the principal agent's requirements in connection with the provision of temporary support work, etc. Any damage caused to the works by overloading shall be made good by the contractor at his sole expense
A95: 18 | C95: Confidentiality The contractor undertakes to maintain in confidence any and all information regarding this project and shall obtain appropriate similar undertakings from all subcontractors and suppliers. Such information shall not be used in any way except in connection with the execution of the works No information regarding this project shall be published or disclosed without the prior written consent of the employer
C97: SUMMARY OF CATEGORIES
A99: 19 | C99: Category Fixed : R........................................ | E99: Item | F99: 1 | H99: =ROUND(F99*G99,2) -> 0.00
C101: Category Value : R........................................
C103: Category Time : R........................................
C105: Total for Preliminaries carried to Summary | I105: =SUM(H6:H99) -> 0.00
C107: CONTRACT DATA
C109: A PROJECT INFORMATION
C111: A 1.0 Works (1.1)
C113: Project Name: Fit out of two floors in Media24 Building for WesgroWorks
C114: Description: The renovation of the 7th and 8th floors in the Media24 Building for office accommodation and the renovation of two bathrooms
C116: A 2.0 Site (1.1)
C118: Erf Number: 244 Cape Town
C119: Site Address: Media24 Building, 40 Heerengracht, Cape Town 8001
C120: Local Authority: City of Cape Town
C122: A 3.0 Employer (1.1)
C124: WESGRO Tel: Krishen George 071 898 1418 E-mail: scm@wesgro.co.za
C126: A 4.0 Principal Agent (1.1)
C128: COLLABORATION Agents Service: Interior Designer Darren Shellar 021 448 8686 E-mail: darren@collaboration.co.za
C130: Agent (1.1;6.2) ANN ROESE QUANTITY SURVEYORS Agents service: Quantity Surveyor Tel: Ann Roese 083 402 3007 E-mail ann@arqs.co.za
C132: Agent (1.1;6.2) SUTHERLAND ENGINEERS Agents service: Fire Engineers Selwyn Breytenbach Email: Selwyn@sutherlandengineers.com
C134: Agent (1.1;6.2) EKCON CONSULTING ENGINEERS Agents service: Mechanical Engineers Name Alex Meyer Email: alex@ekcon.co.za
C136: Agent (1.1;6.2) Agents service: Health and Safety Consultants TBA
C138: Agent (1.1;6.2)GALETTI Agents service: Media24 Architect - watching brief Elena Zwick-Sedick E-mail: elena.zwick@galetti.co.za
C140: Media24 Building Manager John Visser E mail jvisser@media24.com
C142: B CONTRACT INFORMATION
C144: B 1.0 Definitions (1.1)
C146: Bills of quantities system of measurement:Standard System of Measuring Building Work 7th Edition 2017
C148: B 2.0 Law, regulations and notices (2.0)
C150: Law applicable to the works: Republic of South Africa
C152: B 3.0 Offer and acceptance (3.0)
C154: Currency applicable to this agreement (3.2) ZAR
C156: B 4.0 Documents (5.0)
C158: The priced bills of quantities and the project programme are to be submitted with the tender. The bills of quantities in excel are issued with the tender document - the tenderer is only required to enter the rates as all formulas are in place. The priced Excel bills of quantities on a flash drive must be submitted with the tender. Hand written rates and extensions will result in the invalidation of the tender.
C160: The original signed agreement is to be held by the Employer (5.2)
C162: Number of construction document copies to be supplied to the contractor at no cost (5.6): Three copies
C164: Documents comprising the agreement
C165: The JBCC PBA Edition 6,2 May 2018 page 1 - 30 The JBCC PBA - Contract Data, Edition 6,2 May 2018 page 1 - 14
C166: Provisional bills of quantities page 1 - 67
C167: Annexure A - Media24 contractors house rules
C168: Annexure B - Interior designers drawings
C170: Architects Drawings and Specifications
C172: General Arrangement 7th Floor 1982/07/GA/20 Rev 1 General Arrangement 8th Floor 1982/08/GA/20 Rev 1 General Arrangement Partitions 1982/0A/GA/21 Rev A
C173: Reflected Ceiling 7th Floor P/1982/07/RC/50 Rev A Reflected Ceiling 8th Floor P/1982/08/RC/50 Rev A
C174: Floor Finish 7th Floor P/1982/07/FF/45 Rev B Floor Finish 8th Floor P/1982/08/FF/45 Rev C
C175: Electrical Layout 7th Floor P/1982/07/RF/40 Rev 0 Electrical Layout 8th Floor P/1982/08/RF/40 Rev 0
C176: Female Bathroom 7th Floor P/1982/07/ELE/101 R 0 Male Bathroom 8th Floor P/1982/08/ELE/101 R 0
C178: B 5.0 Employers agents (6.0)
C180: Authority is delegated to the following agents to issue contract instructions and perform duties for specific aspects of the works (6.2) Architect, Mechanical Engineer, Fire Engineer, Quantity Surveyor & Health and Safety Consultant
C182: Principal agent's and agents' interest or involvement in the works other than a professional interest (6.3) No interest
C184: B 6.0 Insurances (10.0)
C186: Insurances by contractor
C188: New works (10.1.1) Contract Sum 25% (including VAT) .
C190: Supplementary insurance (10.1.2) Contract Sum 25% (including VAT) .
C192: Public liability insurance (10.1.3) R10,000,000 including VAT
C194: B 7.0 Obligations of the employer (12.1)
C196: Existing premises will be occupied (12.1.2) Yes Refer to Annexure A - Media24 Contractors Rules
C198: Restriction of working hours (12.1.2) The contractor will be provided with a separate access route onto the site and may work regular business hours. Any overtime will have to be arranged and approved by the Building Manager
C200: All known services are to be preserved by the contractor (12.1.3) It is the intention to incorporate where possible the existing mechanical, electrical and fire detection services and care must be taken not to damage the infrastructure
C202: Restrictions to the site or areas that the contractor may not occupy (12.1.4) Material deliveries must only be transported in the goods lift The contractor and material deliveries must use the delivery entrance at the back of the building
C204: B 9.0 Direct contractors (16.0)
C206: Wesgro will appoint their own data contractor whose work will have to be included in the project programme
C208: B11.0 Possession of site (12.1.5), practical completion (19.0;20.0) and penalties (24.0)
C210: Intended date of possession of the site (12.1.5) 23 February 2024
C212: Period for the commencement of the works after contractor takes possession of the site Zero (0) working days
C214: Date for practical completion (12.2.7;24.1) The Employer intends moving into the premises on 28 June 2024
C216: Penalty (24.1) R8,650 excluding VAT per calendar day
C218: B 12.0 Payment (25.0)
C220: Date of the month for regular payment certificates (25.2) 20th
C222: Cost fluctuations (25.3.4; 26.9.5) The contractor is to fix the tender rates from the date of the tender and no escalation shall apply
C224: B 13.0 Dispute resolution (30.0)
C226: The method of dispute resolution shall be agreed between the employer and contractor on signing of the contract
C228: B14.0 JBCC General Preliminaries - selections
C230: Provisional bills of quantities (P2.2) yes
C232: Availability of construction information (P2.3) yes
C234: Inspection of adjoining properties (P3.3) Before commencing with the works a photographic record must be made of any damage to the existing structure
C236: Known services (P4.6)
C238: Water (P8.1)Option A (by contractor) noOption B (by employer - free of charge) no Option C (by employer - metered) yes
C240: Electricity (P8.2) Option A (by contractor) no Option B (by employer - free of charge) no Option C (by employer - metered) yes
C242: Ablution facilities (P8.3) Option A (by contractor) yes Option B (by employer) no
C244: Communication facilities (P8.4) Telephone yes E-mail yes
C246: B 15.0 Changes made to the JBCC documents
C248: PAYMENT REDUCTIONA Payment reduction shall apply as per Clause 11.4.1 in lieu of a fixed or variable guaranteeClause 11.4.1Hand over the site to the contractor and withhold an amount of 10% on each interim payment certificate to the contractor until the total amount withheld is equal to ten per cent (10%) of the contract sum. The amount withheld shall be reduced at practical completion to two and half per cent (2,5%) of the contract sum and to zero per cent (0%) in the final payment certificateInterest shall not apply to the 10% payment reduction
C250: PAYMENT Clause 25.10 The employer shall pay the contractor the amount certified in an issued payment certificate within 30 calendar days of the date of issue of the payment certificate including default interest and compensatory interest
C252: BILL NO 2
C254: CEILINGS
C256: PREAMBLES
C258: For preambles see "Model Preambles for Trades"
C260: SUPPLEMENTARY PREAMBLES
C262: Fixing
C264: Items described as "plugged" shall be deemed to include screwing to fibre, plastic or metal plugs at not exceeding 500mm centres, and where described as "bolted", the bolts have been given elsewhere
C266: Items described as "nailed" shall be deemed to be fixed with hardened steel nails or pins, or to be shot-pinned, to brickwork or concrete
C268: Steel components
C270: All steel components for ceilings, partitions, etc are to be galvanised in accordance with SANS 121
C272: Proprietary suspended ceilings
C274: Hangers, suspension grids, "lay-in" panels, etc are to be in accordance with the manufacturers' recommendations
C276: REMOVAL OF EXISTING WORK
C278: Ceilings
A280: 1 | C280: Suspended gypsum board and ceiling tiles excluding suspension grid, hangers, cornices etc | E280: m² | F280: 2,112 | H280: =ROUND(F280*G280,2) -> 0.00
A282: 2 | C282: Budgetary allowance for alterations to existing ceiling grid to accommodate new ceilings | E282: Item | F282: 1 | H282: =ROUND(F282*G282,2) -> 0.00
C284: SUSPENDED CEILINGS
C286: Supply and install Owacoustic Constellation 600 x 600 x 15mm mineral fibre ceiling tiles with square edges on existing tee suspension system including all necessary hangers, sub grid and fixings.
A288: 3 | C288: Horizontal ceilings suspended exceeding 2m and not exceeding 3m below concrete soffit | E288: m² | F288: 1,363 | H288: =ROUND(F288*G288,2) -> 0.00
C290: 6.4mm "Rhino" gypsum plasterboard ceilings fixed to existing tee-suspension system with strips of mesh scrim nailed over joints and the whole surface finished with gypsum skim plaster trowelled to a smooth polished surface
A292: 4 | C292: Horizontal ceilings suspended not exceeding 1m below concrete soffits | E292: m² | F292: 82 | H292: =ROUND(F292*G292,2) -> 0.00
A294: 5 | C294: Vertical ceilings suspended not exceeding 1m extreme below concrete soffits | E294: m² | F294: 2 | H294: =ROUND(F294*G294,2) -> 0.00
C296: Flush plastered gypsum plasterboard suspended bulkheads
C298: Bulkheads are defined as those portions of ceilings which are stepped down from the general ceiling level in a particular room or area and which generally occur along the perimeter. Their purpose is either to conceal services or to create architectural features
A300: 6 | C300: Rectangular bulkheads 400mm wide x 100mm high, suspended not exceeding 1m below concrete soffits as per detail 01 (refer to architect's drawing P/1982/08/RC/50) | E300: m | F300: 4 | H300: =ROUND(F300*G300,2) -> 0.00
A302: 7 | C302: Rectangular bulkheads 350mm wide x 100mm high, suspended not exceeding 1m below concrete soffits as per detail 01 (refer to architect's drawing P/1982/08/RC/50) | E302: m | F302: 4 | H302: =ROUND(F302*G302,2) -> 0.00
A304: 8 | C304: Rectangular bulkheads 500mm wide x 100mm high, suspended not exceeding 1m below concrete soffits as per detail 01 (refer to architect's drawing P/1982/08/RC/50) | E304: m | F304: 5 | H304: =ROUND(F304*G304,2) -> 0.00
A306: 9 | C306: Rectangular bulkheads 600mm wide x 100mm high, suspended not exceeding 1m below concrete soffits as per detail 01 (refer to architect's drawing P/1982/08/RC/50) | E306: m | F306: 134 | H306: =ROUND(F306*G306,2) -> 0.00
A308: 10 | C308: Rectangular bulkheads 700mm wide x 100mm high, suspended not exceeding 1m below concrete soffits as per detail 01 (refer to architect's drawing P/1982/08/RC/50) | E308: m | F308: 13 | H308: =ROUND(F308*G308,2) -> 0.00
A310: 11 | C310: Rectangular bulkheads 1000mm wide x 100mm high, suspended not exceeding 1m below concrete soffits as per detail 05 and 06 (refer to architect's drawing P/1982/08/RC/50) | E310: m | F310: 228 | H310: =ROUND(F310*G310,2) -> 0.00
A312: 12 | C312: Rectangular bulkheads 1086mm wide x 100mm high, suspended not exceeding 1m below concrete soffits as per detail 01 (refer to architect's drawing P/1982/08/RC/50) | E312: m | F312: 4 | H312: =ROUND(F312*G312,2) -> 0.00
A314: 13 | C314: Rectangular bulkheads 1210mm wide x 100mm high, suspended not exceeding 1m below concrete soffits as per detail 01 (refer to architect's drawing P/1982/08/RC/50) | E314: m | F314: 9 | H314: =ROUND(F314*G314,2) -> 0.00
A316: 14 | C316: Rectangular bulkheads 1250mm wide x 100mm high with chamfered projecting edge 10mm long, suspended not exceeding 1m below concrete soffits as per detail 03 (refer to architect's drawing P/1982/07/RC/50) | E316: m | F316: 6 | H316: =ROUND(F316*G316,2) -> 0.00
A318: 15 | C318: Rectangular bulkheads 1400mm wide x 100mm high, suspended not exceeding 1m below concrete soffits as per detail 01 (refer to architect's drawing P/1982/08/RC/50) | E318: m | F318: 5 | H318: =ROUND(F318*G318,2) -> 0.00
A320: 16 | C320: Rectangular bulkheads 1500mm wide x 100mm high, suspended not exceeding 1m below concrete soffits as per detail 01 (refer to architect's drawing P/1982/08/RC/50) | E320: m | F320: 4 | H320: =ROUND(F320*G320,2) -> 0.00
A322: 17 | C322: Rectangular bulkheads 1600mm wide x 100mm high, suspended not exceeding 1m below concrete soffits as per detail 01 (refer to architect's drawing P/1982/08/RC/50) | E322: m | F322: 13 | H322: =ROUND(F322*G322,2) -> 0.00
A324: 18 | C324: Rectangular bulkheads 1800mm wide x 100mm high, suspended not exceeding 1m below concrete soffits as per detail 01 (refer to architect's drawing P/1982/08/RC/50) | E324: m | F324: 14 | H324: =ROUND(F324*G324,2) -> 0.00
A326: 19 | C326: Rectangular bulkheads 2375mm wide x 100mm high, suspended not exceeding 1m below concrete soffits as per detail 01 (refer to architect's drawing P/1982/08/RC/50) | E326: m | F326: 9 | H326: =ROUND(F326*G326,2) -> 0.00
A328: 20 | C328: Rectangular bulkheads 2398mm wide x 100mm high, suspended not exceeding 1m below concrete soffits as per detail 01 (refer to architect's drawing P/1982/08/RC/50) | E328: m | F328: 1 | H328: =ROUND(F328*G328,2) -> 0.00
A330: 21 | C330: Rectangular bulkheads 3000mm wide x 100mm high, suspended not exceeding 1m below concrete soffits as per detail 01 (refer to architect's drawing P/1982/08/RC/50) | E330: m | F330: 2 | H330: =ROUND(F330*G330,2) -> 0.00
A332: 22 | C332: Recessed shaped ceilings 8700mm long x 2000mm wide at one end and 3000mm wide at other end x 100mm high, suspended not exceeding 1m below concrete soffits as per detail 06 (refer to architect's drawing P/1982/07/RC/50) | E332: No | F332: 1 | H332: =ROUND(F332*G332,2) -> 0.00
A334: 23 | C334: Extra over ceiling for hinged trapdoor | E334: No | F334: 28 | H334: =ROUND(F334*G334,2) -> 0.00
C336: "OWAconstruct" Shadowline perimeter trims, etc to suspended acoustic ceilings
A338: 24 | C338: OWAconstruct Shadowline W-trim, plugged and screwed at centres not exceeding 200mm. | E338: m | F338: 837 | H338: =ROUND(F338*G338,2) -> 0.00
C340: Total for Ceilings carried to Summary | I340: =SUM(H280:H338) -> 0.00
C342: BILL NO 3
C344: PARTITIONS
C346: PREAMBLES
C348: For preambles see "Model Preambles for Trades"
C350: SUPPLEMENTARY PREAMBLES
C352: Fixing
C354: Items described as "plugged" shall be deemed to include screwing to fibre, plastic or metal plugs at not exceeding 500mm centres, and where described as "bolted", the bolts have been given elsewhere
C356: Items described as "nailed" shall be deemed to be fixed with hardened steel nails or pins, or to be shot-pinned, to brickwork or concrete
C358: Steel components
C360: All steel components for ceilings, partitions, etc are to be galvanised in accordance with SANS 121
C362: Partitions
C364: The design of the vertical structural members of the drywallpartition and/or lightweight internal wall shall be in strict accordance with the SABISA Drywall Partition and lightweight Internal Wall Selection Guide. Compliance with this Selection Guide will ensure conformance with appropriate deflection and fire rating requirements.
C366: For details of partitions refer to Drawings: General arrangement builders work - setting out 7th Floor 1982/07/GA/20 Rev 1 8th Floor 1982/08/GA/20 Rev 1 General arrangement - Partition types - 1982/0A/GA/21 Rev A
C368: FIXED PARTITIONS
C370: Skirtings are measured separately
C372: Paint and varnish finishes are measured separately
C374: PARTITION TYPE A
C376: Partitions consisting of 102mm "Gypframe Ultrasteel" studs inserted at 600mm centres into 102mm "Gypframe Ultrasteel" steel track at top and bottom including "Gypframe Ultrasteel Deep Track" and clad on both sides as described with all external angles to have "Gypframe Corner Beads" attached. Boards shall be fixed in strict accordance with the manufacturer's instructions and all joints shall be covered with "Gyproc Rhino Tape" and finished with one layer of Rhinolite
C378: 132mm Thick 60 minutes Fire rated acoustic partition with one layer 15mm "Gyproc Firestop"on both sides and 102mm "Isover Cavitybatt/Cavitylite" insulation inserted into cavity
A380: 1 | C380: Partitions 3100mm high with bottom tracks nailed to concrete floors and top track fixed to concrete soffits | E380: m | F380: 26 | H380: =ROUND(F380*G380,2) -> 0.00
A382: 2 | C382: Extra over partition 3100mm high for abutment with column as per detail 02 (refer drawing 1982/0A/GA/21 revision A) | E382: No | F382: 4 | H382: =ROUND(F382*G382,2) -> 0.00
A384: 3 | C384: Extra over partition 3100mm high for fair end as per detail 11 (refer drawing 1982/0A/GA/21 revision A) | E384: No | F384: 1 | H384: =ROUND(F384*G384,2) -> 0.00
C386: PARTITION TYPE B
C388: Partitions consisting of 63.5mm "Gypframe Ultrasteel" studs inserted at 600mm centres into 63.5mm "Gypframe Ultrasteel" steel track at top and bottom and clad on both sides as described with all external angles to have "Gypframe Corner Beads" attached. Boards shall be fixed in strict accordance with the manufacturer's instructions and all joints shall be covered with "Gyproc Rhino Tape" and finished with one layer of Rhinolite
... 446 more rows
